bitfinex-derivatives/quotes_ETHF0:USTF0_20260115
["timestamp","ask_amount","ask_price","bid_price","bid_amount"]
[1768499945454,0.00453329,3308.6,3307.8,1e-08]
[1768499945653,1.04076697,3308.5,3307.8,1e-08]
[1768499946050,1.18876697,3308.5,3307.8,1e-08]
[1768499946254,1.04076697,3308.4,3307.8,1e-08]
[1768499946550,1.04076697,3308.3,3307.8,1e-08]
[1768499946849,0.15253329,3308.6,3307.8,1e-08]
[1768499947045,1.04167233,3308.5,3307.8,1e-08]
[1768499947259,1.04167233,3308.4,3307.8,1e-08]
[1768499947444,1.04167233,3308.3,3307.8,1e-08]
[1768499947766,0.00453329,3308.6,3307.8,1e-08]
[1768499948056,1.04200605,3308.5,3307.8,1e-08]
[1768499948250,1.04200605,3308.4,3307.8,1e-08]
[1768499948552,1.04200605,3308.3,3307.8,1e-08]
[1768499948754,1.04200605,3308.2,3307.2,0.15]
[1768499948961,1.04200605,3308.1,3307.2,0.15]
[1768499949251,1.04200605,3308.0,3307.2,0.15]
[1768499949453,1.04200605,3307.9,3307.2,0.15]
[1768499949757,0.29919,3308.4,3307.2,0.15]
[1768499949957,1.04246297,3308.3,3307.2,0.15]
[1768499950158,1.04246297,3308.2,3307.2,0.15]
[1768499950351,1.04246297,3308.1,3307.2,0.15]
[1768499950547,0.00453329,3308.6,3307.2,3.52080539]
[1768499950757,1.04239815,3308.5,3307.2,3.52080539]
[1768499951061,1.04239815,3308.4,3307.2,3.67204539]
[1768499951251,0.00453329,3308.6,3307.2,3.67204539]
[1768499952060,1.04250758,3308.5,3307.2,3.67204539]
[1768499952250,0.00453329,3308.6,3307.2,3.67204539]
[1768499952556,1.04250576,3308.5,3307.2,3.67204539]
[1768499952760,0.00453329,3308.6,3307.2,3.67204539]
[1768499952962,1.04250112,3308.5,3307.2,3.67204539]
[1768499953259,0.148,3309.1,3307.2,3.67204539]
[1768499953560,1.04241189,3309.0,3307.2,3.67204539]
[1768499953753,0.29916,3309.1,3306.1,1.70519277]
[1768499953754,3.39326593,3308.8,3306.1,1.70519277]
[1768499953988,3.031,3306.1,3302.9,5.35374612]
[1768499954183,2.19499816,3303.2,3301.7,0.22225143]
[1768499954369,1.18794603,3303.1,3300.5,3.37080539]
[1768499954557,1.18794603,3303.1,3299.4,3.025]
[1768499954558,0.15148,3302.1,3300.0,0.15]
[1768499954764,2.12618182,3301.9,3300.9,1.23476959]
[1768499955059,3.16612785,3301.8,3300.9,1.23476959]
[1768499955258,3.16612785,3301.7,3300.0,0.15]
[1768499955458,3.16612785,3301.6,3300.0,0.15]
[1768499955650,1.03994603,3301.5,3300.0,0.15]
[1768499955849,1.03994603,3301.4,3300.0,0.15]
[1768499956255,1.03994603,3301.4,3300.0,0.15359723]
[1768499956652,1.18694603,3301.4,3300.0,0.00359723]
[1768499956858,4.46817998,3301.4,3300.0,0.00359723]
[1768499957160,2.12618182,3300.8,3299.3,3.37080539]
[1768499957359,1.03994603,3300.7,3299.3,3.37080539]
[1768499957560,1.03994603,3300.6,3299.3,3.37080539]
[1768499957765,1.18694603,3300.5,3299.3,3.37080539]
[1768499957963,1.03994603,3300.4,3298.8,3.37080539]
[1768499958265,1.18694603,3300.3,3298.8,3.37439545]
[1768499958461,1.03994603,3300.2,3298.8,3.37439545]
[1768499958657,1.18694603,3300.1,3298.8,3.37439545]
[1768499958857,1.03994603,3300.0,3298.8,3.37439545]
[1768499959256,1.03994603,3299.9,3298.8,3.37439545]
[1768499960751,0.147,3299.8,3298.8,3.37439545]
[1768499961164,0.147,3299.8,3298.8,0.00359006]
[1768499961457,1.09187937,3299.7,3298.2,3.64604293]
[1768499961655,1.09187937,3299.6,3298.2,3.64604293]
[1768499961856,1.09187937,3299.5,3298.2,3.64604293]
[1768499962060,1.09187937,3299.4,3298.4,3.64604293]
[1768499962373,0.147,3299.7,3298.4,3.79504293]
[1768499962565,0.0028751,3299.4,3298.4,3.79792825]
[1768499963271,0.0028751,3299.4,3298.4,15.01704336]
[1768499963568,0.0028751,3299.4,3298.5,3.64604293]
[1768499963863,0.0028751,3299.4,3298.6,3.65059045]
[1768499964063,0.15154,3300.7,3298.7,3.64604293]
[1768499964266,1.2388476,3300.6,3298.8,3.79504293]
[1768499964463,1.2388476,3300.5,3298.8,3.79504293]
[1768499964659,1.0918476,3300.4,3298.8,3.79504293]
[1768499964967,0.00264746,3300.4,3299.1,3.64604293]
[1768499965168,0.00264746,3300.4,3299.3,3.3446792]
[1768499965467,0.147,3301.0,3299.5,3.3446792]
[1768499965669,0.147,3301.0,3299.6,3.4936792]
[1768499966261,40.8,3301.8,3300.0,0.00454752]
[1768499966468,1.23853605,3301.7,3300.1,3.3446792]
[1768499966763,1.09153605,3301.6,3300.1,3.3446792]
[1768499966965,1.09153605,3301.5,3300.1,3.3446792]
[1768499967158,1.09153605,3301.4,3300.1,3.3446792]
[1768499967391,0.147,3301.7,3300.1,3.3446792]
[1768499967555,1.09147964,3301.6,3300.1,3.3446792]
[1768499967762,1.23847964,3301.5,3300.1,3.3446792]
[1768499967956,1.09147964,3301.4,3300.1,3.3446792]
[1768499968171,0.147,3301.5,3300.1,3.3446792]
[1768499968360,1.09147826,3301.4,3300.1,3.3446792]
[1768499968560,0.147,3301.5,3300.1,3.3446792]
[1768499969066,0.00361935,3301.8,3300.1,3.3446792]
[1768499969266,1.09139738,3301.7,3300.4,3.3446792]
[1768499969568,1.09139738,3301.6,3300.6,3.3446792]
[1768499969771,0.15061935,3301.8,3300.6,3.3446792]
[1768499969964,1.09137613,3301.7,3300.6,3.3446792]
[1768499970164,1.09137613,3301.6,3300.6,3.3446792]
[1768499970470,0.15061935,3301.8,3300.6,3.3446792]
[1768499970667,1.23837412,3301.7,3300.6,3.3446792]
[1768499970867,1.09137412,3301.6,3300.7,3.3446792]
[1768499971065,0.15061935,3301.8,3300.7,3.3446792]
[1768499971265,1.09137255,3301.7,3300.7,3.3446792]
[1768499971467,1.09135813,3301.6,3300.7,3.3446792]
[1768499971771,0.00361935,3301.8,3301.0,3.3446792]
[1768499972067,1.09131319,3301.7,3301.0,3.34731054]
[1768499972261,1.09131329,3301.6,3301.0,3.34731054]
[1768499972465,0.00361935,3301.8,3301.0,0.00263134]
[1768499972768,1.09131819,3301.7,3300.5,0.149]
[1768499972973,1.09131819,3301.6,3300.5,0.149]
[1768499973174,1.09131819,3301.5,3300.5,0.149]
[1768499973472,1.09131819,3301.4,3300.5,0.149]
[1768499973672,0.00361935,3301.8,3300.5,0.15277466]
[1768499973872,1.09138114,3301.7,3300.5,0.15277466]
[1768499974171,1.09138114,3301.6,3300.7,3.3446792]
[1768499974372,1.09138114,3301.5,3300.7,3.3446792]
[1768499974572,1.09138114,3301.4,3300.7,3.3446792]
[1768499974875,0.00361935,3301.8,3301.0,14.56379431]
[1768499975072,0.00361935,3301.8,3301.1,3.3446792]
[1768499975271,0.146,3302.1,3301.1,3.3446792]
[1768499976071,0.146,3302.4,3301.1,3.3446792]
[1768499976267,0.00391269,3302.4,3301.1,3.3446792]
[1768499977666,0.00391269,3302.4,3301.2,3.3446792]
[1768499978468,0.00391269,3302.4,3301.4,3.3446792]
[1768499978962,0.00391269,3302.4,3301.5,3.3446792]
[1768499980165,0.00391269,3302.4,3301.6,3.3446792]
[1768499980367,0.00391269,3302.4,3301.3,0.148]
[1768499980571,0.00391269,3302.4,3301.4,11.21911511]
[1768499981076,0.00391269,3302.4,3301.5,11.21911511]
[1768499981263,2.13009451,3302.4,3301.4,11.21911511]
[1768499981466,2.13009451,3302.4,3301.5,11.21911511]
[1768499981666,0.00391269,3302.4,3301.5,11.21911511]
[1768499981965,0.00391269,3302.4,3301.6,11.21911511]
[1768499982166,0.00391269,3302.4,3301.5,11.21911511]
[1768499982474,0.00391269,3302.4,3301.7,5.81960253]
[1768499982675,0.00391269,3302.4,3301.6,3.3446792]
[1768499982875,0.00391269,3302.4,3301.6,9.16428173]
[1768499983280,0.00391269,3302.4,3301.6,5.07261907]
[1768499983475,2.67934229,3302.0,3301.3,0.148]
[1768499983676,6.31732813,3302.4,3301.3,0.148]
[1768499983887,2.68325498,3302.4,3301.3,0.148]
[1768499984478,0.00391269,3302.4,3301.3,0.148]
[1768499985370,0.00391269,3302.4,3301.4,3.3446792]
[1768499986371,0.00391269,3302.4,3301.3,0.148]
[1768499986570,2.68325498,3302.4,3301.3,0.148]
[1768499986771,1.09115309,3302.3,3301.3,0.148]
[1768499986971,1.09115309,3302.2,3301.3,0.148]
[1768499987277,1.09115309,3302.1,3301.3,0.148]
[1768499987575,1.09115309,3302.0,3301.3,0.148]
[1768499987875,0.00391269,3302.4,3301.3,3.4926792]
[1768499990377,0.00391269,3302.4,3301.4,0.147]
[1768499990678,0.00391269,3302.4,3301.5,0.147]
[1768499992094,3.818,3302.3,3301.5,0.147]
[1768499992393,0.15143,3303.0,3301.5,6.147]
[1768499992394,3.818,3302.9,3301.5,6.147]
[1768499992576,3.818,3302.9,3301.5,0.147]
[1768499993377,3.82042933,3302.9,3301.5,0.147]
[1768499993571,0.00242933,3302.9,3301.5,0.147]
[1768499993774,0.00242933,3302.9,3301.6,0.1515]
[1768499993977,2.14568146,3302.9,3301.5,0.147]
[1768499994189,2.14325213,3302.8,3301.5,0.147]
[1768499994774,2.14568146,3302.9,3301.5,0.147]
[1768499995194,2.14325213,3302.7,3301.5,0.147]
[1768499995390,0.00242933,3302.9,3301.7,0.15149]
[1768499995983,0.00242933,3302.9,3301.8,0.15149]
[1768499996574,0.00242933,3302.9,3301.9,0.15148]
[1768499996879,2.67934229,3303.6,3302.1,0.15147]
[1768499997086,3.63234077,3303.6,3301.0,0.74191273]
[1768499997286,3.63234077,3303.5,3301.4,0.15151]
[1768499997981,3.63450794,3303.5,3301.4,0.15151]
[1768499999893,3.63234077,3303.3,3301.4,0.15151]
[1768500000084,1.05676345,3303.2,3301.4,0.15151]
[1768500000285,3.63234077,3303.0,3301.4,0.15151]
[1768500000481,1.05676345,3302.9,3301.4,0.15151]
[1768500000777,1.05676345,3302.8,3301.4,0.15151]
[1768500000983,1.05676345,3302.7,3301.5,0.1515]
[1768500001183,1.05676345,3302.7,3301.1,3.176]
[1768500001184,0.00216717,3303.5,3302.2,0.15147]
[1768500001389,0.00216717,3303.5,3302.3,0.146]
[1768500001794,3.63450794,3303.5,3302.3,0.146]
[1768500002176,3.63234077,3303.3,3302.3,0.146]
[1768500002581,3.63234077,3303.3,3302.0,0.146]
[1768500003292,3.78376077,3303.3,3302.0,0.146]
[1768500003587,3.63234077,3303.1,3302.0,1e-08]
[1768500004287,3.63234077,3303.1,3301.1,3.03]
[1768500004489,3.63234077,3303.1,3301.2,0.146]
[1768500005184,3.63234077,3302.9,3301.2,0.146]
[1768500005392,3.63234077,3302.6,3301.2,0.146]
[1768500007085,5.77900949,3302.6,3301.2,0.146]
[1768500007284,3.63234077,3302.5,3301.2,0.146]
[1768500007884,3.63234077,3302.1,3301.2,0.146]
[1768500008085,5.92200949,3302.1,3300.5,0.00377466]
[1768500008292,3.63234077,3301.8,3300.6,0.145]
[1768500012193,3.63234077,3302.1,3300.6,0.15154]
[1768500013197,3.63234077,3301.9,3300.6,0.15154]
[1768500013398,1.04809889,3301.8,3300.6,0.15154]
[1768500013797,1.04809889,3301.8,3300.2,0.14840921]
[1768500013798,3.63234077,3301.7,3300.2,0.14840921]
[1768500013997,3.63234077,3301.5,3300.2,0.14840921]
[1768500014199,1.04809889,3301.4,3300.2,0.14840921]
[1768500014400,4.68043966,3301.3,3300.2,0.14840921]
[1768500014698,3.63234077,3301.3,3300.2,0.14840921]
[1768500015900,0.143,3301.7,3300.2,0.29996921]
[1768500016100,1.04742585,3301.6,3300.2,0.29996921]
[1768500016302,1.04742585,3301.5,3300.2,0.29996921]
[1768500016595,0.143,3302.0,3300.2,0.29996921]
[1768500016798,3.63234077,3301.8,3300.2,0.29996921]
[1768500016998,3.63234077,3301.6,3300.2,0.29996921]
[1768500017195,3.63234077,3301.4,3300.2,0.29996921]
[1768500018699,3.63234077,3301.9,3300.5,0.15155]
[1768500018900,1.04663225,3301.8,3300.5,0.15155]
[1768500019202,3.63234077,3301.9,3300.5,0.15155]
[1768500019401,3.63234077,3301.9,3300.2,0.14840921]
[1768500019402,3.63234077,3301.7,3300.4,0.145]
[1768500019607,3.63234077,3301.5,3300.4,0.145]
[1768500019799,1.04642478,3301.4,3300.4,0.145]
[1768500019996,3.63234077,3301.5,3300.4,0.145]
[1768500022901,3.77434077,3301.5,3300.4,0.145]
[1768500023894,3.44448742,3301.3,3300.2,0.14740921]
[1768500028099,3.45785332,3301.8,3300.2,0.29896921]
[1768500028300,0.00454752,3302.2,3300.2,6.14740921]
[1768500028492,0.00454752,3302.2,3300.9,0.15153]
[1768500028696,0.00454752,3302.2,3301.0,0.144]
[1768500030702,0.00454752,3302.2,3301.1,0.15152]
[1768500032102,0.00216717,3303.5,3301.1,6.0]
[1768500032307,1.16878638,3303.4,3301.4,0.15151]
[1768500032608,1.02678638,3303.3,3301.4,0.15151]
[1768500032797,1.02678638,3303.2,3301.4,0.15151]
[1768500033110,1.02678638,3303.1,3301.4,0.15151]
[1768500033307,1.02678638,3303.0,3301.4,0.15151]
[1768500033502,0.142,3303.4,3301.4,0.15151]
[1768500033707,1.02688313,3303.3,3301.4,0.15151]
[1768500033899,1.02688313,3303.2,3301.4,0.15151]
[1768500034095,1.02688313,3303.1,3301.4,0.15151]
[1768500034299,1.02688313,3303.0,3301.4,0.15151]
[1768500034502,3.45785332,3303.2,3301.4,0.15151]
[1768500034704,1.02673336,3303.1,3301.4,0.15151]
[1768500034907,1.02673336,3303.0,3301.4,0.15151]
[1768500035208,0.00216717,3303.5,3301.9,0.15148]
[1768500035410,0.00216717,3303.5,3302.0,0.29448]
[1768500035711,0.00216717,3303.5,3302.1,0.143]
[1768500036709,3.45785332,3303.7,3302.1,0.143]
[1768500036710,2.89360854,3304.3,3302.3,3.63605386]
[1768500037012,1.02589142,3304.2,3302.5,3.63605386]
[1768500037305,2.89360854,3304.3,3302.5,3.63605386]
[1768500037504,1.02510865,3304.2,3302.5,3.63605386]
[1768500037711,0.00251276,3304.2,3302.5,3.63605386]
[1768500038212,0.00251276,3304.2,3302.6,3.78750386]
[1768500038414,0.00251276,3304.2,3302.7,3.77905386]
[1768500038706,0.00251276,3304.2,3302.7,3.93050386]
[1768500038900,0.00251276,3304.2,3302.8,0.15144]
[1768500039099,0.00251276,3304.2,3302.8,3.78749386]
[1768500039705,0.00251276,3304.2,3302.9,3.78749386]
[1768500041720,7.27585332,3304.1,3302.7,0.143]
[1768500041921,10.38027465,3304.0,3302.7,0.143]
[1768500042114,3.45785332,3303.8,3302.7,0.143]
[1768500042312,6.92242133,3303.5,3302.7,0.143]
[1768500042514,6.92242133,3303.6,3302.7,0.143]
[1768500042717,10.74042133,3304.0,3302.7,0.143]
[1768500043116,3.818,3304.0,3302.7,0.143]
[1768500045837,0.00251276,3304.2,3302.7,3.77905386]
[1768500046633,0.00251276,3304.2,3302.7,3.93049386]
[1768500047135,3.45785332,3304.9,3302.7,3.77905386]
[1768500047332,3.45785332,3304.7,3302.7,3.77905386]
[1768500048033,3.4607588,3304.7,3302.7,3.93050386]
[1768500048232,3.4607588,3304.7,3302.8,3.78749386]
[1768500048436,3.4607588,3304.7,3302.9,3.78749386]
[1768500048741,3.4607588,3304.7,3302.9,0.15144]
[1768500048942,10.38318013,3304.7,3302.9,0.15144]
[1768500049137,7.27585332,3304.6,3302.6,0.00290916]
[1768500049338,3.45785332,3304.3,3302.7,0.142]
[1768500049643,3.45785332,3304.2,3302.7,0.142]
[1768500049846,10.74042133,3304.1,3302.7,0.142]
[1768500050340,6.92242133,3304.0,3302.7,0.142]
[1768500050738,6.92242133,3303.9,3302.7,0.142]
[1768500051040,6.92242133,3304.0,3302.7,0.142]
[1768500051428,6.92242133,3303.9,3302.7,0.142]
[1768500051643,6.92242133,3304.0,3302.7,0.142]
[1768500052134,3.33168375,3304.1,3302.7,0.142]
[1768500052344,6.92242133,3304.0,3302.7,0.142]
[1768500052838,6.92242133,3303.9,3302.7,0.142]
[1768500053029,6.92242133,3304.0,3302.7,0.142]
[1768500053435,6.92242133,3303.9,3302.7,0.142]
[1768500053631,6.92242133,3304.0,3302.7,0.142]
[1768500053833,10.25410508,3304.0,3302.7,0.142]
[1768500054044,6.92242133,3303.8,3302.7,0.142]
[1768500054243,3.33168375,3303.6,3302.7,0.142]
[1768500054628,6.92242133,3303.3,3302.7,0.142]
[1768500054828,6.92242133,3303.3,3302.6,0.14490916]
[1768500055033,6.92242133,3303.2,3302.6,0.14490916]
[1768500055227,6.92242133,3303.4,3302.6,0.14490916]
[1768500055742,6.92242133,3303.3,3302.6,0.14490916]
[1768500055934,6.92242133,3303.4,3302.6,0.14490916]
[1768500056335,6.92242133,3303.3,3302.6,0.14490916]
[1768500056647,6.92242133,3303.5,3302.6,0.14490916]
[1768500056946,6.92242133,3303.3,3302.6,0.14490916]
[1768500057138,6.92242133,3303.3,3302.6,0.141]
[1768500057439,3.33168375,3303.6,3302.2,3.029]
[1768500057639,3.33168375,3303.6,3301.6,3.62222365]
[1768500057640,3.33168375,3303.1,3301.4,3.18051]
[1768500057836,3.33168375,3302.9,3301.5,0.141]
[1768500058035,10.25410508,3302.7,3301.5,0.141]
[1768500058238,10.25410508,3302.7,3301.5,0.14382835]
[1768500058544,6.92242133,3302.5,3301.5,0.14382835]
[1768500058746,6.92242133,3302.3,3301.5,0.14382835]
[1768500059040,0.00376706,3302.3,3301.5,0.14382835]
[1768500059238,0.00376706,3302.3,3301.4,3.029]
[1768500059239,6.92242133,3302.1,3301.4,3.029]
[1768500059436,6.92242133,3302.1,3300.1,3.62222365]
[1768500059437,6.92242133,3301.9,3300.6,3.029]
[1768500059746,6.92242133,3301.9,3300.7,0.141]
[1768500059940,3.33168375,3302.2,3300.7,0.141]
[1768500060341,3.33168375,3302.2,3300.7,0.14405115]
[1768500060342,1.02397471,3302.1,3300.7,0.14405115]
[1768500060546,3.33168375,3302.2,3300.7,0.14405115]
[1768500060842,10.25410508,3301.7,3300.7,0.14405115]
[1768500061039,1.02383776,3301.6,3300.7,0.14405115]
[1768500061233,10.25410508,3301.7,3300.7,0.14405115]
[1768500061234,6.92242133,3301.4,3300.7,0.14405115]
[1768500061436,3.33545081,3302.3,3300.7,0.14405115]
[1768500061651,0.00376706,3302.3,3300.7,3.9178148]
[1768500062744,0.00376706,3302.3,3300.8,0.15153]
[1768500062932,0.00376706,3302.3,3301.0,0.15152]
[1768500063545,3.33168375,3303.9,3301.6,3.62222365]
[1768500063741,3.33168375,3303.9,3301.9,3.77370365]
[1768500063742,1.02339764,3303.8,3301.9,3.77370365]
[1768500063936,1.02339764,3303.7,3301.9,3.77370365]
[1768500064142,1.02339764,3303.6,3301.9,3.77370365]
[1768500064349,7.94581897,3303.6,3301.9,3.77370365]
[1768500064554,1.02339764,3303.5,3301.9,3.77370365]
[1768500065742,0.0028202,3303.6,3302.1,3.77369365]
[1768500066048,0.0028202,3303.6,3302.2,3.76322365]
[1768500066347,0.0028202,3303.6,3302.4,3.62222365]
[1768500066744,3.33168375,3304.8,3302.5,3.62222365]
[1768500066943,1.02394393,3304.7,3302.7,3.77366365]
[1768500067148,1.02394393,3304.6,3302.8,0.141]
[1768500067355,1.02394393,3304.5,3302.8,0.141]
[1768500067546,1.02394393,3304.4,3302.8,0.141]
[1768500067752,0.00336244,3304.4,3302.8,0.141]
[1768500069155,3.33168375,3305.4,3303.5,3.62222365]
[1768500069350,7.94682272,3305.3,3303.6,3.17]
[1768500069546,1.02440139,3305.2,3303.6,3.17]
[1768500069855,6.92242133,3305.2,3304.1,0.00454057]
[1768500070055,3.33168375,3305.4,3304.2,0.14]
[1768500070247,1.02404907,3305.3,3304.2,0.1431904]
[1768500070441,3.33487705,3305.4,3304.2,0.1431904]
[1768500070648,6.92242133,3305.2,3304.2,0.1431904]
[1768500071154,0.0031933,3305.4,3304.2,0.1431904]
[1768500071355,3.33487705,3305.4,3304.2,0.0031904]
[1768500071655,6.92242133,3304.7,3304.3,0.14]
[1768500072057,6.92242133,3304.4,3304.2,0.0031904]
[1768500072255,3.33487705,3305.4,3304.2,0.0031904]
[1768500072256,6.92242133,3304.7,3304.2,0.14]
[1768500072654,6.92242133,3304.4,3304.2,0.14]
[1768500073258,6.92242133,3304.3,3304.2,0.14284333]
[1768500073454,6.92242133,3304.4,3304.2,0.14284333]
[1768500073662,6.92242133,3304.3,3304.2,0.14]
[1768500074654,6.92242133,3304.3,3304.2,0.14370432]
[1768500074851,3.74971701,3304.2,3304.1,0.14]
[1768500075164,3.74971701,3304.1,3303.9,0.14]
[1768500075353,3.74971701,3304.5,3303.9,0.14]
[1768500075554,3.74971701,3304.1,3303.9,0.14]
[1768500075752,0.00454057,3304.8,3303.9,0.14]
[1768500075952,3.74971701,3304.7,3303.9,0.14375163]
[1768500076154,0.00454057,3304.8,3303.9,0.14375163]
[1768500076353,3.74971701,3304.4,3303.9,0.14375163]
[1768500076764,2.51171701,3304.3,3303.9,0.14375163]
[1768500077066,2.51171701,3304.4,3303.9,0.14375163]
[1768500077363,2.51171701,3304.2,3303.9,0.14375163]
[1768500077553,1.31509201,3304.3,3303.9,0.14375163]
[1768500077755,1.31509201,3304.4,3303.9,0.14375163]
[1768500078364,1.31509201,3304.2,3303.9,0.14375163]
[1768500078667,1.31509201,3304.7,3303.9,0.14375163]
[1768500078862,0.00454057,3304.8,3303.9,0.14375163]
[1768500079063,1.31509201,3304.5,3303.9,0.14375163]
[1768500079365,1.31509201,3304.4,3303.9,0.14375163]
[1768500079765,0.00454057,3304.8,3303.1,3.029]
[1768500079766,1.31509201,3304.2,3303.1,3.029]
[1768500079964,0.00454057,3304.8,3303.2,0.14]
[1768500080162,1.31509201,3304.7,3303.2,0.14]
[1768500080365,1.31509201,3304.3,3303.2,0.14]
[1768500080665,1.31509201,3304.1,3303.2,0.14]
[1768500080856,1.31509201,3304.3,3303.2,0.14384219]
[1768500081268,1.31509201,3304.1,3303.2,0.14384219]
[1768500081468,1.31509201,3304.5,3303.2,0.14384219]
[1768500081663,0.00454057,3304.8,3303.2,0.14384219]
[1768500081664,1.31509201,3304.6,3303.2,0.29526219]
[1768500081971,1.31509201,3303.3,3301.4,3.33732256]
[1768500082266,3.60992169,3303.5,3301.5,0.139]
[1768500082962,0.00721428,3302.8,3301.5,0.14211617]
[1768500087674,0.00721428,3302.8,3301.8,3.35111448]
[1768500087976,0.00721428,3302.8,3301.7,0.15149]
[1768500088175,1.31509201,3302.7,3301.7,0.15149]
[1768500089268,1.31509201,3302.7,3301.5,0.14211617]
[1768500089473,0.00721428,3302.8,3301.5,0.14211617]
[1768500089670,1.32230629,3302.8,3301.5,0.00311617]
[1768500089971,1.32230629,3302.8,3299.8,2.54582916]
[1768500089972,3.33820711,3302.3,3300.5,3.18055]
[1768500090168,1.31509201,3301.7,3300.6,0.139]
[1768500090570,1.31509201,3301.3,3300.6,0.139]
[1768500090877,1.31509201,3301.6,3300.6,0.14258238]
[1768500091061,3.33820711,3302.3,3300.6,0.14258238]
[1768500091465,1.31509201,3301.6,3300.6,0.14258238]
[1768500091876,1.31509201,3301.2,3300.6,0.14258238]
[1768500092077,1.31509201,3301.6,3300.6,0.14258238]
[1768500092470,1.31509201,3301.2,3300.6,0.14258238]
[1768500092777,1.31509201,3301.6,3300.6,0.14258238]
[1768500093277,3.34542139,3302.8,3300.6,3.64523686]
[1768500093466,1.31509201,3302.3,3300.6,3.64523686]
[1768500093869,1.31509201,3302.0,3300.6,3.64523686]
[1768500094073,1.31509201,3302.3,3300.6,3.64523686]
[1768500094473,0.00721428,3302.8,3301.2,3.35111448]
[1768500094671,3.33820711,3303.4,3301.4,3.35111448]
[1768500095571,3.34092646,3303.4,3301.6,0.1515]
[1768500095771,3.34092646,3303.4,3301.7,0.138]
[1768500097278,3.34092646,3303.4,3301.7,0.28949]
[1768500097978,3.34092646,3303.4,3301.8,3.029]
[1768500099083,3.34092646,3303.4,3302.3,0.00454057]
[1768500099281,3.34092646,3303.4,3302.4,0.138]
[1768500099477,0.00721428,3303.2,3302.4,0.138]
[1768500100175,0.00721428,3303.1,3302.4,0.138]
[1768500100381,0.00721428,3303.3,3302.4,0.138]
[1768500100581,3.34092646,3303.4,3302.4,0.138]
[1768500100782,0.00721428,3303.2,3302.4,0.138]
[1768500100977,0.00271935,3303.4,3302.4,0.138]
[1768500109589,3.818,3304.3,3302.5,0.15146]
[1768500109789,3.33820711,3304.5,3302.4,0.138]
[1768500109790,3.818,3304.2,3302.4,3.48911448]
[1768500110787,0.00344134,3304.2,3303.1,0.15143]
[1768500110988,0.00344134,3304.2,3303.2,3.166]
[1768500111688,7.45652235,3305.1,3303.2,3.166]
[1768500111880,3.818,3305.1,3303.6,0.1514]
[1768500112084,3.818,3305.1,3303.7,0.137]
[1768500112589,3.82080846,3305.1,3303.7,0.137]
[1768500114691,0.00280846,3305.1,3303.7,0.2884]
[1768500115591,0.00280846,3305.1,3303.9,0.15139]
[1768500115794,0.00280846,3305.1,3304.0,0.15139]
[1768500121487,0.00280846,3305.1,3303.7,0.137]
[1768500121796,3.64133081,3305.1,3303.8,0.136]
[1768500121993,3.64133081,3305.1,3304.1,0.00454057]
[1768500123898,0.00454057,3304.9,3303.8,0.136]
[1768500124093,3.63852235,3304.8,3303.8,0.136]
[1768500124289,0.00454057,3304.9,3303.8,0.136]
[1768500125503,3.63852235,3304.7,3303.1,4.6e-07]
[1768500125805,3.63852235,3304.0,3302.0,0.136]
[1768500126001,3.63852235,3303.8,3302.1,0.136]
[1768500126303,3.63852235,3303.6,3302.1,0.136]
[1768500126493,3.64133081,3305.1,3302.7,3.56652649]
[1768500126801,3.64133081,3305.1,3302.8,3.164]
[1768500127000,3.64133081,3305.1,3302.7,0.15145]
[1768500127305,3.63852235,3304.9,3302.8,0.136]
[1768500129709,0.00721428,3304.2,3302.8,0.136]
[1768500129904,3.63852235,3304.9,3302.8,3.55107649]
[1768500130111,0.00280846,3305.1,3303.5,0.00454057]
[1768500130300,0.00280846,3305.1,3303.6,0.136]
[1768500131809,3.64133081,3305.1,3303.6,0.136]
[1768500132211,3.64133081,3305.1,3303.5,0.00454057]
[1768500132403,3.64133081,3305.1,3303.7,0.136]
[1768500135716,3.818,3305.0,3303.7,0.136]
[1768500136402,3.82080846,3305.1,3303.7,0.136]
[1768500137609,3.82080846,3305.1,3303.7,0.2874]
[1768500139712,0.00280846,3305.1,3304.0,0.15139]
[1768500139917,2.14666872,3306.4,3304.1,0.15138]
[1768500139918,3.63852235,3306.2,3304.1,0.15138]
[1768500140116,1.02189328,3306.1,3304.2,0.15137]
[1768500140412,4.66041563,3306.0,3304.3,0.135]
[1768500140617,1.02189328,3305.9,3304.3,0.135]
[1768500140809,1.02189328,3305.8,3304.3,0.135]
[1768500141006,1.02189328,3305.7,3304.3,0.135]
[1768500141204,0.00244954,3305.9,3304.3,0.135]
[1768500141412,1.02163619,3305.8,3304.3,0.28637]
[1768500141612,0.00244954,3305.9,3304.3,0.28637]
[1768500141805,0.00244954,3305.9,3304.3,3.68911974]
[1768500142411,0.00244954,3305.9,3304.4,0.15137]
[1768500142715,0.00244954,3305.9,3304.5,0.15136]
[1768500142902,0.00244954,3305.9,3304.5,0.1538135]
[1768500144717,0.00244954,3305.9,3304.5,3.55656324]
[1768500146411,0.00244954,3305.9,3304.5,3.40520324]
[1768500148605,0.00244954,3305.9,3304.8,0.15135]
[1768500148809,0.00244954,3305.9,3304.5,3.40520324]
[1768500148810,0.00244954,3305.9,3304.5,0.0024535]
[1768500149010,3.30157204,3305.9,3304.5,0.0024535]
[1768500149206,3.2991225,3305.7,3303.9,3.027]
[1768500149506,3.2991225,3305.5,3304.0,0.134]
[1768500149709,1.01867998,3305.4,3304.0,0.134]
[1768500149912,1.01867998,3305.3,3304.0,0.134]
[1768500150107,1.01867998,3305.2,3304.0,0.13694745]
[1768500150308,3.2991225,3305.5,3304.0,0.13694745]
[1768500150511,1.01877824,3305.4,3304.0,0.13694745]
[1768500150724,4.31790074,3305.3,3304.1,0.134]
[1768500151022,3.818,3305.4,3304.1,0.134]
[1768500151226,1.01887434,3305.3,3304.1,0.134]
[1768500151424,3.818,3305.4,3304.1,0.134]
[1768500151723,1.01889284,3305.3,3304.1,0.134]
[1768500151921,3.818,3305.4,3304.1,0.134]
[1768500152326,1.0189034,3305.3,3304.1,0.134]
[1768500152530,3.818,3305.4,3304.1,0.134]
[1768500152716,1.01890441,3305.3,3304.1,0.134]
[1768500152918,3.818,3305.4,3304.1,0.134]
[1768500153325,1.01865291,3305.3,3304.0,0.00294745]
[1768500153627,7.1171225,3305.4,3304.1,0.134]
[1768500153825,1.01864232,3305.3,3304.1,0.134]
[1768500154025,7.1171225,3305.4,3304.1,0.134]